Workbook

Sheet Exp planification
A1: Costing Exercise
B2: Activity structure | C2: 2016 | D2: Q1 | E2: Q2 | F2: Q3 | G2: Q4 | H2: 2017 | I2: 2018 | J2: Total 2016-2018
A3: Program 1 Improve the sustainable management and use of existing conservation areas and establish more conservation areas throughout the nation | C3: =SUM(D3:G3) -> 805000 | D3: =D4 -> 50000 | E3: =E4 -> 300000 | F3: 325000 | G3: 130000 | H3: 1280000 | I3: 1600000 | J3: =C3+H3+I3 -> 3685000
A4: Sub-program 1.1 Increase the number of new conservation areas throughout the nation | C4: =SUM(D4:G4) -> 805000 | D4: =D5 -> 50000 | E4: 300000 | F4: 325000 | G4: 130000 | H4: 1280000 | I4: 1600000 | J4: =C4+H4+I4 -> 3685000
A5: Action 1.1.1 Establish protected areas throughout the nation to enhance biodiversity in Tuvalu | C5: 805000 | D5: =SUM(D6:D12) -> 50000 | E5: 300000 | F5: 325000 | G5: 130000 | H5: 1280000 | I5: 1600000 | J5: =C5+H5+I5 -> 3685000
B6: Develop a sustainable financing mechanism to support conservation areas' management | C6: 200000 | D6: 50000 | E6: 50000 | F6: 50000 | G6: 50000 | J6: 200000
B7: Develop critieria for site selection | C7: 250000 | E7: 250000 | J7: 250000
B8: Develop guidelines for conservation action planning | C8: 275000 | F8: 275000 | J8: 275000
B9: Develop site-based management plan | C9: 80000 | G9: 80000 | J9: 80000
B10: Provide financial & technical support for site management | C10: 0 | H10: 1280000 | I10: 1500000 | J10: 2780000
B11: Evaluate management effectiveness | C11: 0 | I11: 100000 | J11: 100000
B12: Endowment | C12: 0 | J12: 0

Sheet Costs by categories
A2: Sub-division of costs by categories
B3: 2016 | H3: 2017 | N3: 2018
A4: Categories of expenses | B4: Salary | C4: Operating Exp | D4: Transfert | E4: Investissement | F4: Total | G4: Validation | H4: Salary | I4: Operating Exp | J4: Transfert | K4: Investissement | L4: Total | M4: Validation | N4: Salary | O4: Operating Exp | P4: Transfert | Q4: Investissement | R4: Total | S4: Validation
A5: Sum by Expenses | B5: =B6 -> 295000 | C5: =C6 -> 435000 | D5: 0 | E5: 75000 | F5: =F6 -> 805000 | H5: =H6 -> 768000 | I5: =I6 -> 462000 | J5: =J6 -> 0 | K5: =K6 -> 50000 | L5: =L6 -> 1280000 | N5: =N6 -> 844800 | O5: =O6 -> 763200 | P5: =P6 -> 0 | Q5: =Q6 -> 92000 | R5: =R6 -> 1600000
A6: ='Exp planification'!A3 -> Program 1 Improve the sustainable management and use of existing conservation areas and establish more conservation areas throughout the nation | B6: =B7 -> 295000 | C6: =C7 -> 435000 | D6: =D7 -> 0 | E6: =E7 -> 75000 | F6: ='Exp planification'!C3 -> 805000 | G6: =IF((B6+C6+D6+E6)=0,0,F6-SUM(B6:E6)) -> 0 | H6: =H7 -> 768000 | I6: =I7 -> 462000 | J6: =J7 -> 0 | K6: =K7 -> 50000 | L6: ='Exp planification'!H3 -> 1280000 | M6: =IF((H6+I6+J6+K6)=0,0,L6-SUM(H6:K6)) -> 0 | N6: =N7 -> 844800 | O6: =O7 -> 763200 | P6: =P7 -> 0 | Q6: =Q7 -> 92000 | R6: ='Exp planification'!I3 -> 1600000 | S6: =IF((N6+O6+P6+Q6)=0,0,R6-SUM(N6:Q6)) -> -100000
A7: ='Exp planification'!A4 -> Sub-program 1.1 Increase the number of new conservation areas throughout the nation | B7: =B8+B14 -> 295000 | C7: =C8+C14 -> 435000 | D7: 0 | E7: 75000 | F7: ='Exp planification'!C4 -> 805000 | G7: =IF((B7+C7+D7+E7)=0,0,F7-SUM(B7:E7)) -> 0 | H7: =H8+H14 -> 768000 | I7: =I8+I14 -> 462000 | J7: =J8+J14 -> 0 | K7: =K8+K14 -> 50000 | L7: ='Exp planification'!H4 -> 1280000 | M7: =IF((H7+I7+J7+K7)=0,0,L7-SUM(H7:K7)) -> 0 | N7: =N8+N14 -> 844800 | O7: =O8+O14 -> 763200 | P7: =P8+P14 -> 0 | Q7: =Q8+Q14 -> 92000 | R7: ='Exp planification'!I4 -> 1600000 | S7: =IF((N7+O7+P7+Q7)=0,0,R7-SUM(N7:Q7)) -> -100000
A8: ='Exp planification'!A5 -> Action 1.1.1 Establish protected areas throughout the nation to enhance biodiversity in Tuvalu | B8: =SUM(B9:B15) -> 295000 | C8: =SUM(C9:C15) -> 435000 | D8: =SUM(D9:D15) -> 0 | E8: =SUM(E9:E15) -> 75000 | F8: ='Exp planification'!C5 -> 805000 | G8: =IF((B8+C8+D8+E8)=0,0,F8-SUM(B8:E8)) -> 0 | H8: =SUM(H9:H15) -> 768000 | I8: =SUM(I9:I15) -> 462000 | J8: =SUM(J9:J15) -> 0 | K8: =SUM(K9:K15) -> 50000 | L8: ='Exp planification'!H5 -> 1280000 | M8: =IF((H8+I8+J8+K8)=0,0,L8-SUM(H8:K8)) -> 0 | N8: =SUM(N9:N15) -> 844800 | O8: =SUM(O9:O15) -> 663200 | P8: =SUM(P9:P15) -> 0 | Q8: =SUM(Q9:Q15) -> 92000 | R8: ='Exp planification'!I5 -> 1600000 | S8: =IF((N8+O8+P8+Q8)=0,0,R8-SUM(N8:Q8)) -> 0
A9: ='Exp planification'!B6 -> Develop a sustainable financing mechanism to support conservation areas' management | B9: 200000 | F9: ='Exp planification'!C6 -> 200000 | G9: 0 | L9: ='Exp planification'!H6 -> 0 | M9: 0 | R9: ='Exp planification'!I6 -> 0 | S9: 0
A10: ='Exp planification'!B7 -> Develop critieria for site selection | B10: 45000 | C10: 205000 | F10: ='Exp planification'!C7 -> 250000 | G10: 0 | L10: ='Exp planification'!H7 -> 0 | M10: 0 | R10: ='Exp planification'!I7 -> 0 | S10: 0
A11: ='Exp planification'!B8 -> Develop guidelines for conservation action planning | B11: 50000 | C11: 225000 | F11: ='Exp planification'!C8 -> 275000 | G11: 0 | L11: ='Exp planification'!H8 -> 0 | M11: 0 | R11: ='Exp planification'!I8 -> 0 | S11: 0
A12: ='Exp planification'!B9 -> Develop site-based management plan | C12: 5000 | E12: 75000 | F12: ='Exp planification'!C9 -> 80000 | G12: 0 | L12: ='Exp planification'!H9 -> 0 | M12: 0 | R12: ='Exp planification'!I9 -> 0 | S12: 0
A13: ='Exp planification'!B10 -> Provide financial & technical support for site management | F13: ='Exp planification'!C10 -> 0 | G13: 0 | H13: 768000 | I13: 462000 | K13: 50000 | L13: ='Exp planification'!H10 -> 1280000 | M13: 0 | N13: 844800 | O13: 563200 | Q13: 92000 | R13: ='Exp planification'!I10 -> 1500000 | S13: 0
A14: ='Exp planification'!B11 -> Evaluate management effectiveness | F14: ='Exp planification'!C11 -> 0 | G14: 0 | L14: ='Exp planification'!H11 -> 0 | M14: 0 | O14: 100000 | R14: ='Exp planification'!I11 -> 100000 | S14: 0
A15: ='Exp planification'!B12 -> Endowment | F15: ='Exp planification'!C12 -> 0 | G15: 0 | L15: ='Exp planification'!H12 -> 0 | M15: =IF((H15+I15+J15+K15)=0,0,L15-SUM(H15:K15)) -> 0 | R15: ='Exp planification'!I12 -> 0 | S15: =IF((N15+O15+P15+Q15)=0,0,R15-SUM(N15:Q15)) -> 0

Sheet Chart
A1: 2 | B1: Expenses by categories from 2016-2018
B3: Expenses by categories
B4: Categories/years | C4: 2016 | D4: =C4+1 -> 2017 | E4: =D4+1 -> 2018 | F4: Total | G4: %
B5: Salary | C5: ='Costs by categories'!B5 -> 295000 | D5: ='Costs by categories'!H5 -> 768000 | E5: ='Costs by categories'!N5 -> 844800 | F5: =SUM(C5:E5) -> 1907800 | G5: =F5/$F$9 -> 0.5040422721
B6: Operating Exp | C6: ='Costs by categories'!C5 -> 435000 | D6: ='Costs by categories'!I5 -> 462000 | E6: ='Costs by categories'!O5 -> 763200 | F6: =SUM(C6:E6) -> 1660200 | G6: =F6/$F$9 -> 0.4386261559
B7: Transfert | C7: ='Costs by categories'!D5 -> 0 | D7: ='Costs by categories'!J5 -> 0 | E7: ='Costs by categories'!P5 -> 0 | F7: =SUM(C7:E7) -> 0 | G7: =F7/$F$9 -> 0
B8: Investissement | C8: ='Costs by categories'!E5 -> 75000 | D8: ='Costs by categories'!K5 -> 50000 | E8: ='Costs by categories'!Q5 -> 92000 | F8: =SUM(C8:E8) -> 217000 | G8: =F8/$F$9 -> 0.05733157199
B9: TOTAL expenses | C9: =SUM(C5:C8) -> 805000 | D9: =SUM(D5:D8) -> 1280000 | E9: =SUM(E5:E8) -> 1700000 | F9: =SUM(F5:F8) -> 3785000 | G9: =F9/$F$9 -> 1
